[Event "*** Titled Tuesday Blitz"]
[Site "Chess.com"]
[Date "2020.10.20"]
[Round "9"]
[White "Playgood28"]
[Black "zverr1"]
[Result "0-1"]
[WhiteElo "2279"]
[BlackElo "2412"]
[TimeControl "180+1"]
[EndTime "11:48:05 PDT"]
[Termination "zverr1 won on time"]

1. d4 {[%clk 0:03:00.9]} 1... Nf6 {[%clk 0:02:59.8]} 2. c4 {[%clk 0:03:00.5]}
2... g6 {[%clk 0:02:55.7]} 3. Nc3 {[%clk 0:03:00.1]} 3... Bg7 {[%clk 0:02:56.3]}
4. Nf3 {[%clk 0:03:00]} 4... O-O {[%clk 0:02:57.2]} 5. Bf4 {[%clk 0:02:59.4]}
5... d5 {[%clk 0:02:56.6]} 6. e3 {[%clk 0:02:58.6]} 6... c5 {[%clk 0:02:56.6]}
7. cxd5 {[%clk 0:02:55.5]} 7... Nxd5 {[%clk 0:02:52.6]} 8. Be5 {[%clk
0:02:52.1]} 8... Nc6 {[%clk 0:02:41.1]} 9. Bxg7 {[%clk 0:02:50.6]} 9... Kxg7
{[%clk 0:02:42]} 10. Nxd5 {[%clk 0:02:47.6]} 10... Qxd5 {[%clk 0:02:41.6]} 11.
dxc5 {[%clk 0:02:46.1]} 11... Qxc5 {[%clk 0:02:41]} 12. Be2 {[%clk 0:02:29]}
12... Rd8 {[%clk 0:02:30.1]} 13. Qc1 {[%clk 0:02:28.3]} 13... Qa5+ {[%clk
0:02:24]} 14. Qc3+ {[%clk 0:02:22]} 14... Qxc3+ {[%clk 0:02:23.7]} 15. bxc3
{[%clk 0:02:21.8]} 15... e5 {[%clk 0:02:20.5]} 16. Bb5 {[%clk 0:02:18.5]} 16...
f6 {[%clk 0:02:16.1]} 17. Ke2 {[%clk 0:01:59.4]} 17... Bg4 {[%clk 0:02:10.2]}
18. h3 {[%clk 0:01:56.9]} 18... Be6 {[%clk 0:02:06.5]} 19. Rhd1 {[%clk
0:01:42.5]} 19... Na5 {[%clk 0:01:55.5]} 20. Nd2 {[%clk 0:01:01.2]} 20... Rac8
{[%clk 0:01:46.1]} 21. Nb3 {[%clk 0:00:46]} 21... Nxb3 {[%clk 0:01:41.8]} 22.
axb3 {[%clk 0:00:44.9]} 22... a6 {[%clk 0:01:42.3]} 23. Bc4 {[%clk 0:00:36.3]}
23... Bxc4+ {[%clk 0:01:35.4]} 24. bxc4 {[%clk 0:00:36]} 24... e4 {[%clk
0:01:29.1]} 25. Rab1 {[%clk 0:00:29.4]} 25... Rxd1 {[%clk 0:01:22.7]} 26. Rxb7+
{[%clk 0:00:22.3]} 26... Kh6 {[%clk 0:01:22.6]} 27. Kxd1 {[%clk 0:00:22.1]}
27... Rxc4 {[%clk 0:01:23.2]} 28. Kd2 {[%clk 0:00:19.2]} 28... Ra4 {[%clk
0:01:23.7]} 29. Rb2 {[%clk 0:00:18.9]} 29... Kg5 {[%clk 0:01:22.5]} 30. Rc2
{[%clk 0:00:18.6]} 30... Rc4 {[%clk 0:01:22.1]} 31. Ra2 {[%clk 0:00:17.1]} 31...
Rc6 {[%clk 0:01:22.7]} 32. Ra5+ {[%clk 0:00:16.3]} 32... f5 {[%clk 0:01:20.6]}
33. Ra4 {[%clk 0:00:14.7]} 33... Rb6 {[%clk 0:01:20.4]} 34. Ra2 {[%clk
0:00:14.4]} 34... h5 {[%clk 0:01:17.1]} 35. c4 {[%clk 0:00:11.9]} 35... h4
{[%clk 0:01:14.7]} 36. Ke2 {[%clk 0:00:11.8]} 36... Kf6 {[%clk 0:01:14]} 37. Kd2
{[%clk 0:00:09.8]} 37... Ke5 {[%clk 0:01:13.8]} 38. Kc3 {[%clk 0:00:09.6]} 38...
Rd6 {[%clk 0:01:09.7]} 39. Ra5+ {[%clk 0:00:08.9]} 39... Ke6 {[%clk 0:01:09.3]}
40. c5 {[%clk 0:00:08.6]} 40... Rc6 {[%clk 0:01:09.8]} 41. Kd4 {[%clk
0:00:08.3]} 41... g5 {[%clk 0:01:08.7]} 42. Ra4 {[%clk 0:00:08.3]} 42... f4
{[%clk 0:01:02.9]} 43. Kxe4 {[%clk 0:00:06.8]} 43... fxe3 {[%clk 0:01:00.1]} 44.
Kxe3 {[%clk 0:00:06]} 44... Rxc5 {[%clk 0:00:59.3]} 45. Rxa6+ {[%clk 0:00:05.9]}
45... Kf5 {[%clk 0:00:59.8]} 46. Ra2 {[%clk 0:00:05.8]} 46... Re5+ {[%clk
0:00:59.1]} 47. Kf3 {[%clk 0:00:04.7]} 47... Rb5 {[%clk 0:01:00]} 48. Rc2 {[%clk
0:00:03.6]} 48... Rb3+ {[%clk 0:01:00]} 49. Ke2 {[%clk 0:00:03.6]} 49... Kf4
{[%clk 0:00:59.4]} 50. Rd2 {[%clk 0:00:04.5]} 50... Rb4 {[%clk 0:00:58.6]} 51.
Rc2 {[%clk 0:00:04.7]} 51... Re4+ {[%clk 0:00:59]} 52. Kf1 {[%clk 0:00:03.2]}
52... Ra4 {[%clk 0:00:58.4]} 53. Re2 {[%clk 0:00:03]} 53... Ra1+ {[%clk
0:00:58.3]} 54. Re1 {[%clk 0:00:03.9]} 54... Ra2 {[%clk 0:00:55.4]} 55. Re2
{[%clk 0:00:03.7]} 55... Ra3 {[%clk 0:00:55.7]} 56. Re1 {[%clk 0:00:02.5]} 56...
Ra8 {[%clk 0:00:53.4]} 57. Rd1 {[%clk 0:00:02.2]} 57... Re8 {[%clk 0:00:53.3]}
58. Rc1 {[%clk 0:00:01.5]} 58... Re4 {[%clk 0:00:52.2]} 59. Rc2 {[%clk
0:00:01.2]} 59... Ra4 {[%clk 0:00:53.1]} 0-1

[Event "*** Titled Tuesday Blitz"]
[Site "Chess.com"]
[Date "2020.10.20"]
[Round "9"]
[White "vova-79"]
[Black "canary2016"]
[Result "1-0"]
[WhiteElo "2492"]
[BlackElo "1956"]
[TimeControl "180+1"]
[EndTime "11:48:06 PDT"]
[Termination "vova-79 won by checkmate"]

1. d4 {[%clk 0:03:00.9]} 1... d5 {[%clk 0:02:59.7]} 2. c4 {[%clk 0:02:59.3]}
2... c6 {[%clk 0:02:59.8]} 3. Nc3 {[%clk 0:02:58.5]} 3... Nf6 {[%clk 0:02:59.6]}
4. e3 {[%clk 0:02:58.2]} 4... Bf5 {[%clk 0:02:58.1]} 5. cxd5 {[%clk 0:02:57.2]}
5... cxd5 {[%clk 0:02:57.2]} 6. Qb3 {[%clk 0:02:56]} 6... Qd7 {[%clk 0:02:55.1]}
7. Nf3 {[%clk 0:02:54.5]} 7... e6 {[%clk 0:02:53]} 8. Ne5 {[%clk 0:02:49.2]}
8... Qc7 {[%clk 0:02:52.3]} 9. Bd2 {[%clk 0:02:44.6]} 9... Be7 {[%clk 0:02:50]}
10. Nb5 {[%clk 0:02:37.5]} 10... Qc8 {[%clk 0:02:39.1]} 11. Bb4 {[%clk
0:02:16.2]} 11... Qd8 {[%clk 0:01:42.8]} 12. Qa3 {[%clk 0:02:06.3]} 12... Nc6
{[%clk 0:01:32.7]} 13. Nxc6 {[%clk 0:01:52.7]} 13... bxc6 {[%clk 0:01:32.1]} 14.
Nd6+ {[%clk 0:01:43.1]} 14... Bxd6 {[%clk 0:01:26.8]} 15. Bxd6 {[%clk 0:01:44]}
15... Ne4 {[%clk 0:01:23.8]} 16. Bc5 {[%clk 0:01:34.6]} 16... Nxc5 {[%clk
0:01:22.5]} 17. Qxc5 {[%clk 0:01:33.4]} 17... Qd7 {[%clk 0:01:20.5]} 18. Rc1
{[%clk 0:01:23.7]} 18... Rc8 {[%clk 0:01:19.7]} 19. Ba6 {[%clk 0:01:20.9]} 19...
Rc7 {[%clk 0:01:18]} 20. O-O {[%clk 0:01:19.1]} 20... Qe7 {[%clk 0:01:14.1]} 21.
Rc3 {[%clk 0:01:15.8]} 21... Qxc5 {[%clk 0:00:47.2]} 22. Rxc5 {[%clk 0:01:16.7]}
22... O-O {[%clk 0:00:47.1]} 23. Rfc1 {[%clk 0:01:15.1]} 23... Rb8 {[%clk
0:00:38.9]} 24. Rxc6 {[%clk 0:01:12.6]} 24... Rxc6 {[%clk 0:00:38.4]} 25. Rxc6
{[%clk 0:01:10.4]} 25... h6 {[%clk 0:00:34.8]} 26. Rc8+ {[%clk 0:01:07.3]} 26...
Rxc8 {[%clk 0:00:34]} 27. Bxc8 {[%clk 0:01:08.2]} 27... Kf8 {[%clk 0:00:34.1]}
28. Kf1 {[%clk 0:01:05.4]} 28... Ke7 {[%clk 0:00:32.5]} 29. Ke2 {[%clk
0:01:04.9]} 29... Kd6 {[%clk 0:00:31.8]} 30. Ba6 {[%clk 0:01:03.9]} 30... Kc6
{[%clk 0:00:29.8]} 31. Bd3 {[%clk 0:01:01.7]} 31... Bg4+ {[%clk 0:00:13.3]} 32.
f3 {[%clk 0:01:00.2]} 32... Bh5 {[%clk 0:00:13]} 33. g4 {[%clk 0:00:58.6]} 33...
Bg6 {[%clk 0:00:13.3]} 34. Bxg6 {[%clk 0:00:56.7]} 34... fxg6 {[%clk 0:00:13.5]}
35. e4 {[%clk 0:00:53.1]} 35... Kb5 {[%clk 0:00:11.2]} 36. Kd3 {[%clk 0:00:51]}
36... Kb4 {[%clk 0:00:08.1]} 37. f4 {[%clk 0:00:42]} 37... a5 {[%clk 0:00:06.2]}
38. e5 {[%clk 0:00:37.2]} 38... a4 {[%clk 0:00:04.8]} 39. f5 {[%clk 0:00:33.6]}
39... gxf5 {[%clk 0:00:02.9]} 40. gxf5 {[%clk 0:00:32.1]} 40... exf5 {[%clk
0:00:02.4]} 41. e6 {[%clk 0:00:30.5]} 41... g5 {[%clk 0:00:02.1]} 42. e7 {[%clk
0:00:29.3]} 42... f4 {[%clk 0:00:02]} 43. e8=Q {[%clk 0:00:28.6]} 43... g4
{[%clk 0:00:02.2]} 44. Qb8+ {[%clk 0:00:26.2]} 44... Ka5 {[%clk 0:00:02]} 45.
Qxf4 {[%clk 0:00:26.9]} 45... h5 {[%clk 0:00:01.7]} 46. Qg5 {[%clk 0:00:26]}
46... Kb4 {[%clk 0:00:02.1]} 47. Qxh5 {[%clk 0:00:24.6]} 47... a3 {[%clk
0:00:02.5]} 48. bxa3+ {[%clk 0:00:23.9]} 48... Kxa3 {[%clk 0:00:02.8]} 49. Qxd5
{[%clk 0:00:22.6]} 49... g3 {[%clk 0:00:02.9]} 50. Qb3# {[%clk 0:00:20.5]} 1-0

[Event "*** Titled Tuesday Blitz"]
[Site "Chess.com"]
[Date "2020.10.20"]
[Round "9"]
[White "Wilver92"]
[Black "DonBroca"]
[Result "1-0"]
[WhiteElo "2395"]
[BlackElo "2127"]
[TimeControl "180+1"]
[EndTime "11:48:06 PDT"]
[Termination "Wilver92 won by resignation"]

1. e4 {[%clk 0:03:00.7]} 1... c5 {[%clk 0:03:00.3]} 2. c3 {[%clk 0:02:59.6]}
2... Nf6 {[%clk 0:02:57]} 3. e5 {[%clk 0:02:59.4]} 3... Nd5 {[%clk 0:02:56.8]}
4. d4 {[%clk 0:03:00.3]} 4... cxd4 {[%clk 0:02:54.1]} 5. Nf3 {[%clk 0:02:59.2]}
5... Nc6 {[%clk 0:02:52.8]} 6. Bc4 {[%clk 0:02:58.6]} 6... Nb6 {[%clk
0:02:51.5]} 7. Bb3 {[%clk 0:02:58.1]} 7... d5 {[%clk 0:02:49.8]} 8. cxd4 {[%clk
0:02:57.3]} 8... Bg4 {[%clk 0:02:47.6]} 9. Be3 {[%clk 0:02:58.2]} 9... e6 {[%clk
0:02:45.8]} 10. Nc3 {[%clk 0:02:58]} 10... Be7 {[%clk 0:02:44.5]} 11. O-O {[%clk
0:02:57.7]} 11... O-O {[%clk 0:02:44.8]} 12. h3 {[%clk 0:02:57.7]} 12... Bh5
{[%clk 0:02:44.1]} 13. Bc2 {[%clk 0:02:57.1]} 13... Rc8 {[%clk 0:02:26.7]} 14.
Rc1 {[%clk 0:02:56.2]} 14... Nc4 {[%clk 0:02:23.3]} 15. b3 {[%clk 0:02:54.7]}
15... Nxe3 {[%clk 0:02:18.6]} 16. fxe3 {[%clk 0:02:55.3]} 16... Bg6 {[%clk
0:02:00.4]} 17. Bxg6 {[%clk 0:02:50.9]} 17... hxg6 {[%clk 0:02:00]} 18. Ne2
{[%clk 0:02:50.5]} 18... Qa5 {[%clk 0:01:56.4]} 19. a4 {[%clk 0:02:49.3]} 19...
Ba3 {[%clk 0:01:49.6]} 20. Rc2 {[%clk 0:02:43.5]} 20... Nb4 {[%clk 0:01:49.1]}
21. Rxc8 {[%clk 0:02:43.7]} 21... Rxc8 {[%clk 0:01:47.6]} 22. Ng5 {[%clk
0:02:43.8]} 22... Rc7 {[%clk 0:01:45.8]} 23. Nf4 {[%clk 0:02:43]} 23... Nc2
{[%clk 0:01:40.9]} 24. Qf3 {[%clk 0:02:35.4]} 24... Qd2 {[%clk 0:01:33.5]} 25.
Nfxe6 {[%clk 0:02:34.8]} 25... fxe6 {[%clk 0:01:30.6]} 26. Nxe6 {[%clk
0:02:25.4]} 26... Rd7 {[%clk 0:01:15.1]} 27. Rf2 {[%clk 0:02:04.1]} 27... Qe1+
{[%clk 0:01:05.2]} 28. Kh2 {[%clk 0:01:54.1]} 28... Nxe3 {[%clk 0:01:04.7]} 29.
Re2 {[%clk 0:01:36.6]} 29... Nf1+ {[%clk 0:00:58.9]} 30. Kg1 {[%clk 0:01:36.3]}
30... Qd1 {[%clk 0:00:50.4]} 31. Qxf1 {[%clk 0:01:32]} 31... Qxf1+ {[%clk
0:00:49.8]} 32. Kxf1 {[%clk 0:01:32.9]} 32... b6 {[%clk 0:00:49.1]} 33. Rc2
{[%clk 0:01:27.4]} 33... Be7 {[%clk 0:00:48.1]} 34. Rc8+ {[%clk 0:01:26.6]}
34... Kf7 {[%clk 0:00:47.6]} 35. Nf4 {[%clk 0:01:26.1]} 35... Rb7 {[%clk
0:00:42.7]} 36. Nxd5 {[%clk 0:01:24.7]} 36... Bg5 {[%clk 0:00:40.2]} 37. Rc7+
{[%clk 0:01:22.8]} 37... Rxc7 {[%clk 0:00:39.1]} 38. Nxc7 {[%clk 0:01:23.7]}
38... Ke7 {[%clk 0:00:39.6]} 39. d5 {[%clk 0:01:23.1]} 39... Bf4 {[%clk
0:00:39.3]} 40. Nb5 {[%clk 0:01:06.6]} 40... a6 {[%clk 0:00:34.3]} 41. Nc7
{[%clk 0:01:05.6]} 41... a5 {[%clk 0:00:33.3]} 42. Na8 {[%clk 0:01:05.8]} 42...
Be3 {[%clk 0:00:24.6]} 43. Ke2 {[%clk 0:01:02.8]} 43... Bd4 {[%clk 0:00:19.8]}
44. Kd3 {[%clk 0:01:02.6]} 44... Bxe5 {[%clk 0:00:17.1]} 45. Nxb6 {[%clk
0:01:02]} 45... Kd6 {[%clk 0:00:13.6]} 46. Ke4 {[%clk 0:00:47.4]} 46... Bg3
{[%clk 0:00:11.9]} 47. Nc4+ {[%clk 0:00:46.8]} 47... Kc5 {[%clk 0:00:12.3]} 48.
Nxa5 {[%clk 0:00:47]} 48... Kb4 {[%clk 0:00:12.5]} 49. Nb7 {[%clk 0:00:43.1]}
49... Kxb3 {[%clk 0:00:12]} 50. a5 {[%clk 0:00:43.1]} 50... Bb8 {[%clk
0:00:09.6]} 51. a6 {[%clk 0:00:40.2]} 51... Kb4 {[%clk 0:00:10.5]} 52. d6 {[%clk
0:00:38.9]} 52... Kb5 {[%clk 0:00:11.4]} 53. d7 {[%clk 0:00:39.3]} 53... Bc7
{[%clk 0:00:11.7]} 54. a7 {[%clk 0:00:39.3]} 54... Kb6 {[%clk 0:00:12.2]} 55.
a8=Q {[%clk 0:00:39.4]} 1-0

[Event "*** Titled Tuesday Blitz"]
[Site "Chess.com"]
[Date "2020.10.20"]
[Round "9"]
[White "googlegoom"]
[Black "picturesquecheck"]
[Result "1/2-1/2"]
[WhiteElo "2366"]
[BlackElo "2148"]
[TimeControl "180+1"]
[EndTime "11:48:08 PDT"]
[Termination "Game drawn - insufficient material"]

1. Nf3 {[%clk 0:03:00.9]} 1... d6 {[%clk 0:02:59.9]} 2. d4 {[%clk 0:03:00.7]}
2... Nf6 {[%clk 0:02:59.4]} 3. b3 {[%clk 0:03:01.2]} 3... g6 {[%clk 0:03:00]} 4.
Bb2 {[%clk 0:03:01.9]} 4... Bg7 {[%clk 0:03:00.9]} 5. e3 {[%clk 0:03:02.7]} 5...
O-O {[%clk 0:03:01.6]} 6. Be2 {[%clk 0:03:03.5]} 6... e5 {[%clk 0:03:01.8]} 7.
dxe5 {[%clk 0:03:03.2]} 7... Ng4 {[%clk 0:03:02.1]} 8. c4 {[%clk 0:03:03.8]}
8... Nxe5 {[%clk 0:03:00.5]} 9. Nxe5 {[%clk 0:03:03.4]} 9... dxe5 {[%clk
0:03:01.3]} 10. O-O {[%clk 0:03:03.4]} 10... Qxd1 {[%clk 0:02:58.1]} 11. Rxd1
{[%clk 0:03:03.1]} 11... Be6 {[%clk 0:02:56.9]} 12. Nc3 {[%clk 0:03:03.6]} 12...
c6 {[%clk 0:02:54.1]} 13. c5 {[%clk 0:03:02.8]} 13... Nd7 {[%clk 0:02:51.8]} 14.
b4 {[%clk 0:03:03.2]} 14... Rad8 {[%clk 0:02:50.1]} 15. Ne4 {[%clk 0:02:59.8]}
15... f5 {[%clk 0:02:41.7]} 16. Nd6 {[%clk 0:02:59.5]} 16... Rb8 {[%clk
0:02:42]} 17. Bc4 {[%clk 0:02:55.9]} 17... Bxc4 {[%clk 0:02:39.1]} 18. Nxc4
{[%clk 0:02:56.8]} 18... Rfd8 {[%clk 0:02:36.9]} 19. Rd6 {[%clk 0:02:50]} 19...
Nf6 {[%clk 0:02:11.2]} 20. Bxe5 {[%clk 0:02:44.7]} 20... Nd5 {[%clk 0:02:10.4]}
21. Bxg7 {[%clk 0:02:37.4]} 21... Kxg7 {[%clk 0:02:11.3]} 22. a3 {[%clk
0:02:36.4]} 22... Rxd6 {[%clk 0:02:05]} 23. Nxd6 {[%clk 0:02:36.5]} 23... b5
{[%clk 0:01:50.1]} 24. cxb6 {[%clk 0:02:30.5]} 24... Rxb6 {[%clk 0:01:50.1]} 25.
Nc4 {[%clk 0:02:21.9]} 25... Ra6 {[%clk 0:01:48.9]} 26. Rc1 {[%clk 0:02:14.6]}
26... Kf6 {[%clk 0:01:45.6]} 27. Na5 {[%clk 0:02:14.1]} 27... Ne7 {[%clk
0:01:42.8]} 28. Kf1 {[%clk 0:01:56.5]} 28... Ke6 {[%clk 0:01:38.6]} 29. Ke2
{[%clk 0:01:56.9]} 29... Kd7 {[%clk 0:01:33.9]} 30. Kd3 {[%clk 0:01:53.5]} 30...
Rb6 {[%clk 0:01:30.1]} 31. h4 {[%clk 0:01:44.4]} 31... Rb5 {[%clk 0:01:30.2]}
32. g3 {[%clk 0:01:36.9]} 32... a6 {[%clk 0:01:26.3]} 33. Nb3 {[%clk 0:01:36.3]}
33... Rd5+ {[%clk 0:01:23.8]} 34. Ke2 {[%clk 0:01:36.1]} 34... Nc8 {[%clk
0:01:15.2]} 35. Nc5+ {[%clk 0:01:35.5]} 35... Kd6 {[%clk 0:01:12.3]} 36. Nxa6
{[%clk 0:01:34.4]} 36... Nb6 {[%clk 0:01:07.2]} 37. Rd1 {[%clk 0:01:30.6]} 37...
Nc4 {[%clk 0:01:05.1]} 38. Rxd5+ {[%clk 0:01:24.4]} 38... Kxd5 {[%clk
0:01:05.2]} 39. a4 {[%clk 0:01:22.8]} 39... Nb2 {[%clk 0:01:05]} 40. b5 {[%clk
0:01:17.9]} 40... cxb5 {[%clk 0:01:03.6]} 41. axb5 {[%clk 0:01:18.2]} 41... Nc4
{[%clk 0:01:02.7]} 42. Kf3 {[%clk 0:01:13.8]} 42... h6 {[%clk 0:00:57.6]} 43. g4
{[%clk 0:01:07.6]} 43... Ne5+ {[%clk 0:00:51.4]} 44. Kf4 {[%clk 0:01:04.5]}
44... fxg4 {[%clk 0:00:50.6]} 45. b6 {[%clk 0:01:01.1]} 45... Nd3+ {[%clk
0:00:42.8]} 46. Kxg4 {[%clk 0:01:00.2]} 46... Kc6 {[%clk 0:00:42]} 47. f4 {[%clk
0:00:50.6]} 47... Kxb6 {[%clk 0:00:41.2]} 48. Nb8 {[%clk 0:00:51.3]} 48... Kc7
{[%clk 0:00:39.2]} 49. Na6+ {[%clk 0:00:38]} 49... Kd6 {[%clk 0:00:39.3]} 50. h5
{[%clk 0:00:38.6]} 50... gxh5+ {[%clk 0:00:38.7]} 51. Kxh5 {[%clk 0:00:38.9]}
51... Kd5 {[%clk 0:00:37.7]} 52. f5 {[%clk 0:00:35.7]} 52... Ke4 {[%clk
0:00:36.3]} 53. Kg6 {[%clk 0:00:32.1]} 53... Ne5+ {[%clk 0:00:36]} 54. Kf6
{[%clk 0:00:29.9]} 54... Ng4+ {[%clk 0:00:36]} 55. Ke6 {[%clk 0:00:29.6]} 55...
Kxe3 {[%clk 0:00:35.3]} 56. Nb4 {[%clk 0:00:24.1]} 56... h5 {[%clk 0:00:35]} 57.
Nd5+ {[%clk 0:00:24.3]} 57... Kf3 {[%clk 0:00:34.3]} 58. Nf6 {[%clk 0:00:24.4]}
58... Ne3 {[%clk 0:00:26.4]} 59. Nxh5 {[%clk 0:00:21.2]} 59... Nxf5 {[%clk
0:00:26.9]} 1/2-1/2

[Event "*** Titled Tuesday Blitz"]
[Site "Chess.com"]
[Date "2020.10.20"]
[Round "9"]
[White "MarceloPlaya"]
[Black "crazy_but_lazy"]
[Result "0-1"]
[WhiteElo "2296"]
[BlackElo "2459"]
[TimeControl "180+1"]
[EndTime "11:48:19 PDT"]
[Termination "crazy_but_lazy won on time"]

1. e4 {[%clk 0:03:00.9]} 1... g6 {[%clk 0:02:56.6]} 2. d4 {[%clk 0:03:00]} 2...
Bg7 {[%clk 0:02:57.1]} 3. Nc3 {[%clk 0:03:00.1]} 3... d6 {[%clk 0:02:55.2]} 4.
Be3 {[%clk 0:02:59.7]} 4... a6 {[%clk 0:02:55.8]} 5. Qd2 {[%clk 0:02:59.7]} 5...
b5 {[%clk 0:02:56.5]} 6. O-O-O {[%clk 0:02:58.7]} 6... Bb7 {[%clk 0:02:55.8]} 7.
f3 {[%clk 0:02:58.4]} 7... Nd7 {[%clk 0:02:55.6]} 8. h4 {[%clk 0:02:57.7]} 8...
h5 {[%clk 0:02:55.1]} 9. Kb1 {[%clk 0:02:57.6]} 9... Rc8 {[%clk 0:02:53.5]} 10.
g4 {[%clk 0:02:57]} 10... c5 {[%clk 0:02:53.1]} 11. gxh5 {[%clk 0:02:55]} 11...
Rxh5 {[%clk 0:02:51.9]} 12. Nce2 {[%clk 0:02:49.1]} 12... cxd4 {[%clk
0:02:39.7]} 13. Bxd4 {[%clk 0:02:46]} 13... Ngf6 {[%clk 0:02:39.1]} 14. Ng3
{[%clk 0:02:43.1]} 14... Rh8 {[%clk 0:02:35.1]} 15. h5 {[%clk 0:02:39.9]} 15...
g5 {[%clk 0:02:11.4]} 16. Nf5 {[%clk 0:02:34.6]} 16... Bf8 {[%clk 0:02:03.8]}
17. Qxg5 {[%clk 0:02:29]} 17... e6 {[%clk 0:02:01]} 18. Ng7+ {[%clk 0:02:22]}
18... Bxg7 {[%clk 0:01:49.4]} 19. Qxg7 {[%clk 0:02:21.2]} 19... Ke7 {[%clk
0:01:49.9]} 20. Qg5 {[%clk 0:02:09.2]} 20... Qc7 {[%clk 0:01:47.6]} 21. Bd3
{[%clk 0:02:03.1]} 21... Rcg8 {[%clk 0:01:46.4]} 22. Qe3 {[%clk 0:01:57.5]}
22... Rxh5 {[%clk 0:01:37.8]} 23. Rxh5 {[%clk 0:01:54.7]} 23... Nxh5 {[%clk
0:01:38.5]} 24. Ne2 {[%clk 0:01:52.7]} 24... a5 {[%clk 0:01:29.7]} 25. Bxb5
{[%clk 0:01:44.3]} 25... e5 {[%clk 0:01:16.9]} 26. Bc3 {[%clk 0:01:36.2]} 26...
Nhf6 {[%clk 0:01:16.9]} 27. Bxd7 {[%clk 0:01:17.4]} 27... Nxd7 {[%clk
0:01:15.5]} 28. f4 {[%clk 0:01:15.2]} 28... Qc5 {[%clk 0:01:06.7]} 29. Qd3
{[%clk 0:00:58.9]} 29... exf4 {[%clk 0:00:45.6]} 30. Nxf4 {[%clk 0:00:56.2]}
30... Rg1 {[%clk 0:00:42.3]} 31. Nd5+ {[%clk 0:00:29.5]} 31... Bxd5 {[%clk
0:00:41.3]} 32. exd5 {[%clk 0:00:29.4]} 32... f5 {[%clk 0:00:25.1]} 33. a3
{[%clk 0:00:25.9]} 33... f4 {[%clk 0:00:18.4]} 34. Qe2+ {[%clk 0:00:24.9]} 34...
Ne5 {[%clk 0:00:09.6]} 35. Bxe5 {[%clk 0:00:22.2]} 35... Rxd1+ {[%clk 0:00:10]}
36. Qxd1 {[%clk 0:00:21.9]} 36... dxe5 {[%clk 0:00:10.4]} 37. Qd3 {[%clk
0:00:15]} 37... Kd6 {[%clk 0:00:07.2]} 38. c4 {[%clk 0:00:13.9]} 38... a4 {[%clk
0:00:07.1]} 39. Qg6+ {[%clk 0:00:12.7]} 39... Kc7 {[%clk 0:00:06.5]} 40. Qf7+
{[%clk 0:00:12.5]} 40... Kb6 {[%clk 0:00:02.9]} 41. Qe6+ {[%clk 0:00:12.1]}
41... Kb7 {[%clk 0:00:03.2]} 42. Qxe5 {[%clk 0:00:10.9]} 42... Qxc4 {[%clk
0:00:03.7]} 43. Qe7+ {[%clk 0:00:09]} 43... Kb6 {[%clk 0:00:03.5]} 44. Qd6+
{[%clk 0:00:08.3]} 44... Kb5 {[%clk 0:00:03.3]} 45. Qb8+ {[%clk 0:00:06]} 45...
Kc5 {[%clk 0:00:03.3]} 0-1

[Event "*** Titled Tuesday Blitz"]
[Site "Chess.com"]
[Date "2020.10.20"]
[Round "9"]
[White "Qvalda"]
[Black "HouseOfDurin"]
[Result "1-0"]
[WhiteElo "2411"]
[BlackElo "2178"]
[TimeControl "180+1"]
[EndTime "11:48:21 PDT"]
[Termination "Qvalda won by checkmate"]

1. d4 {[%clk 0:02:35.1]} 1... Nf6 {[%clk 0:02:57.5]} 2. c4 {[%clk 0:02:35]} 2...
c5 {[%clk 0:02:57.8]} 3. d5 {[%clk 0:02:34.4]} 3... b5 {[%clk 0:02:58.5]} 4.
cxb5 {[%clk 0:02:34.2]} 4... a6 {[%clk 0:02:59.1]} 5. bxa6 {[%clk 0:02:34.8]}
5... Bxa6 {[%clk 0:02:59.7]} 6. Nc3 {[%clk 0:02:33.3]} 6... d6 {[%clk
0:03:00.1]} 7. e4 {[%clk 0:02:29.9]} 7... Bxf1 {[%clk 0:03:01]} 8. Kxf1 {[%clk
0:02:30.4]} 8... Nbd7 {[%clk 0:02:58.7]} 9. Nge2 {[%clk 0:02:30.2]} 9... g6
{[%clk 0:02:59.2]} 10. h3 {[%clk 0:02:29.8]} 10... Bg7 {[%clk 0:02:59.9]} 11.
Kg1 {[%clk 0:02:30.3]} 11... O-O {[%clk 0:03:00.5]} 12. Kh2 {[%clk 0:02:30.7]}
12... Qa5 {[%clk 0:03:00.2]} 13. Bg5 {[%clk 0:02:25.4]} 13... Rfb8 {[%clk
0:02:59.4]} 14. Rb1 {[%clk 0:02:18.7]} 14... Rb7 {[%clk 0:02:57.7]} 15. f4
{[%clk 0:02:15.5]} 15... Qb4 {[%clk 0:02:52.3]} 16. Qc2 {[%clk 0:02:10.7]} 16...
Kf8 {[%clk 0:02:04.1]} 17. Rhf1 {[%clk 0:02:04.9]} 17... Ne8 {[%clk 0:01:23.8]}
18. f5 {[%clk 0:01:45.3]} 18... Be5+ {[%clk 0:01:21.9]} 19. Kh1 {[%clk
0:01:43.6]} 19... f6 {[%clk 0:01:17.9]} 20. Bh6+ {[%clk 0:01:43.1]} 20... Ng7
{[%clk 0:01:08]} 21. fxg6 {[%clk 0:01:32]} 21... hxg6 {[%clk 0:01:07.2]} 22. Nf4
{[%clk 0:01:29.7]} 22... Bxf4 {[%clk 0:00:58.9]} 23. Rxf4 {[%clk 0:01:30.6]}
23... Kf7 {[%clk 0:00:58.5]} 24. e5 {[%clk 0:01:21.7]} 24... Qa5 {[%clk
0:00:49.2]} 25. e6+ {[%clk 0:01:08.4]} 25... Nxe6 {[%clk 0:00:48.5]} 26. dxe6+
{[%clk 0:01:09.3]} 26... Kxe6 {[%clk 0:00:49.2]} 27. Qe4+ {[%clk 0:01:06.7]}
27... Ne5 {[%clk 0:00:49.2]} 28. Qxb7 {[%clk 0:01:04.6]} 28... c4 {[%clk
0:00:42.6]} 29. Rd1 {[%clk 0:00:54.8]} 29... g5 {[%clk 0:00:39.6]} 30. Qd5+
{[%clk 0:00:46]} 30... Qxd5 {[%clk 0:00:38.8]} 31. Nxd5 {[%clk 0:00:46.9]} 31...
gxf4 {[%clk 0:00:38.6]} 32. Nc7+ {[%clk 0:00:46.9]} 32... Kf5 {[%clk 0:00:37.3]}
33. Nxa8 {[%clk 0:00:45.8]} 33... Nd3 {[%clk 0:00:38.2]} 34. Rd2 {[%clk
0:00:37.5]} 34... e5 {[%clk 0:00:35.4]} 35. Nb6 {[%clk 0:00:33.5]} 35... Nc5
{[%clk 0:00:20.4]} 36. Nxc4 {[%clk 0:00:29.6]} 36... Ne4 {[%clk 0:00:19.5]} 37.
Rc2 {[%clk 0:00:28.7]} 37... Kg6 {[%clk 0:00:18.7]} 38. Bf8 {[%clk 0:00:26.8]}
38... d5 {[%clk 0:00:18.9]} 39. Nd2 {[%clk 0:00:25]} 39... Ng3+ {[%clk
0:00:18.8]} 40. Kh2 {[%clk 0:00:21.5]} 40... d4 {[%clk 0:00:18.8]} 41. a4 {[%clk
0:00:19.4]} 41... Nf5 {[%clk 0:00:18.2]} 42. a5 {[%clk 0:00:18.1]} 42... Ne3
{[%clk 0:00:18.9]} 43. Rc1 {[%clk 0:00:16.5]} 43... Nd5 {[%clk 0:00:17.7]} 44.
a6 {[%clk 0:00:16.3]} 44... Nb6 {[%clk 0:00:17.7]} 45. a7 {[%clk 0:00:16.4]}
45... f5 {[%clk 0:00:16.5]} 46. Bc5 {[%clk 0:00:15.9]} 46... Na8 {[%clk
0:00:16]} 47. Nf3 {[%clk 0:00:16.1]} 47... e4 {[%clk 0:00:15.7]} 48. Nxd4 {[%clk
0:00:14.9]} 48... f3 {[%clk 0:00:15.9]} 49. gxf3 {[%clk 0:00:14.9]} 49... e3
{[%clk 0:00:16.3]} 50. Ne2 {[%clk 0:00:14.5]} 50... f4 {[%clk 0:00:17.2]} 51.
Nxf4+ {[%clk 0:00:14.1]} 51... Kf5 {[%clk 0:00:18.1]} 52. Bxe3 {[%clk
0:00:14.6]} 52... Kg5 {[%clk 0:00:18.2]} 53. Nd5+ {[%clk 0:00:13.5]} 53... Kh4
{[%clk 0:00:19.1]} 54. Nc7 {[%clk 0:00:13.1]} 54... Nb6 {[%clk 0:00:18.7]} 55.
Bxb6 {[%clk 0:00:11.3]} 55... Kh5 {[%clk 0:00:17.9]} 56. a8=Q {[%clk 0:00:10.2]}
56... Kg5 {[%clk 0:00:18.8]} 57. Qd5+ {[%clk 0:00:10]} 57... Kh4 {[%clk
0:00:18.7]} 58. Rc4# {[%clk 0:00:09.7]} 1-0